[Event "FIDE WCCC Open-08 2024"]
[Site "Montesilvano"]
[Date "2024.11.26"]
[Round "11.14"]
[White "Zhang, Yangming"]
[Black "Agar, Garig"]
[Result "1/2-1/2"]
[ECO "C47"]
[WhiteElo "1770"]
[BlackElo "1534"]
[Annotator "NA RC"]
[PlyCount "106"]
[EventDate "2024.11.18"]
[EventType "swiss"]
[EventCountry "ITA"]
[SourceTitle "playchess.com"]
[Source "ChessBase"]
[SourceQuality "1"]
[TimeControl "5400+30"]

1. e4 {[%emt 0:00:43]} e5 {[%emt 0:00:22]} 2. Nf3 {[%emt 0:01:01]} Nc6 {[%emt 0:00:13]} 3. d4 {[%emt 0:00:39]} exd4 {[%emt 0:00:12]} 4. Nxd4 {[%emt 0:00:38]} Nf6 {[%emt 0:00:09]} 5. Nxc6 {[%emt 0:00:23]} bxc6 {[%emt 0:00:11]} 6. Bd3 {[%emt 0:00:37]} d5 {[%emt 0:00:54]} 7. Nc3 {[%emt 0:00:22]} Bb4 {[%emt 0:00:15]} 8. exd5 {[%emt 0:00:25]} cxd5 {[%emt 0:00:09]} 9. O-O {[%emt 0:00:17]} O-O {[%emt 0:03:06]} 10. Bg5 {[%emt 0:00:35]} Be6 {[%emt 0:00:09]} 11. Qf3 {[%emt 0:10:26]} Be7 {[%emt 0:00:46]} 12. h3 {[%emt 0:01:00]} Rb8 {[%emt 0:03:23]} 13. b3 {[%emt 0:01:51]} h6 {[%emt 0:00:42]} 14. Bh4 {[%emt 0:00:53]} c5 {[%emt 0:05:40]} 15. Rad1 {[%emt 0:03:01]} d4 {[%emt 0:05:02]} 16. Ne4 {[%emt 0:02:35]} Nd5 {[%emt 0:03:22]} 17. Bxe7 {[%emt 0:12:00]} Qxe7 {[%emt 0:00:11]} 18. Rfe1 {[%emt 0:00:06]} Rfe8 {[%emt 0:03:25]} 19. a3 {[%emt 0:04:30]} Qc7 {[%emt 0:00:33]} 20. Bc4 {[%emt 0:04:41]} Nb6 {[%emt 0:03:29]} 21. Bxe6 {[%emt 0:05:31]} Rxe6 {[%emt 0:00:10]} 22. c3 {[%emt 0:01:53]} dxc3 {[%emt 0:01:52]} 23. Qxc3 {[%emt 0:02:23]} Rbe8 {[%emt 0:00:35]} 24. Ng3 {[%emt 0:01:31]} Rxe1+ {[%emt 0:03:17]} 25. Rxe1 {[%emt 0:01:00]} Rxe1+ {[%emt 0:00:40]} 26. Qxe1 {[%emt 0:00:09]} Qd7 {[%emt 0:00:18]} 27. Qe3 {[%emt 0:01:12]} c4 {[%emt 1:04:55]} 28. bxc4 {[%emt 0:01:15]} Nxc4 {[%emt 0:00:30]} 29. Qb3 {[%emt 0:00:50]} Nb6 {[%emt 0:00:00]} 30. Qe3 {[%emt 0:00:23]} Qd1+ {[%emt 0:00:00]} 31. Kh2 {[%emt 0:00:16]} Qa4 {[%emt 0:00:00]} 32. Nf5 {[%emt 0:00:55]} Qb5 {[%emt 0:00:00]} 33. Ne7+ {[%emt 0:01:51]} Kf8 {[%emt 0:00:00]} 34. Qe4 {[%emt 0:00:31]} Qc5 {[%emt 0:00:00]} 35. Nf5 {[%emt 0:00:30]} Qxf2 {[%emt 0:00:00]} 36. Qe5 {[%emt 0:00:41]} Qc2 {[%emt 0:00:00]} 37. Qxg7+ {[%emt 0:00:16]} Ke8 {[%emt 0:00:00]} 38. Qg8+ {[%emt 0:00:07]} Kd7 {[%emt 0:00:00]} 39. Qxf7+ {[%emt 0:00:02]} Kc6 {[%emt 0:00:00]} 40. Nxh6 {[%emt 0:01:52]} Qc1 {[%emt 0:00:00]} 41. Qf8 {[%emt 0:00:56]} Kb7 {[%emt 0:00:00]} 42. g4 {[%emt 0:02:05]} Qc7+ {[%emt 0:00:00]} 43. Kg2 {[%emt 0:00:18]} Qc2+ {[%emt 0:00:00]} 44. Kg3 {[%emt 0:00:15]} Qc1 {[%emt 0:00:00]} 45. Kh4 {[%emt 0:02:36]} Nd5 {[%emt 0:00:00]} 46. g5 {[%emt 0:02:16]} Nf4 {[%emt 0:00:00]} 47. Qf7+ {[%emt 0:01:20]} Ka6 {[%emt 0:00:00]} 48. g6 {[%emt 0:07:24]} Ng2+ {[%emt 0:00:00]} 49. Kg4 {[%emt 0:01:26]} Qxh6 {[%emt 0:00:00]} 50. Qf6+ {[%emt 0:03:35]} Kb7 {[%emt 0:00:00]} 51. Qg5 {[%emt 0:00:57]} Ne3+ {[%emt 0:00:00]} 52. Kf4 {[%emt 0:01:00]} Nd5+ {[%emt 0:00:00]} 53. Kf5 {[%emt 0:23:01]} Qxh3+ {[%emt 0:00:00]} 1/2-1/2

[Event "FIDE WCCC Open-08 2024"]
[Site "Montesilvano"]
[Date "2024.11.26"]
[Round "11.15"]
[White "Singh, Ian Avery"]
[Black "Jevglevski, Lev"]
[Result "1-0"]
[ECO "C02"]
[WhiteElo "1713"]
[BlackElo "1602"]
[Annotator "NA RC"]
[PlyCount "81"]
[EventDate "2024.11.18"]
[EventType "swiss"]
[EventCountry "ITA"]
[SourceTitle "playchess.com"]
[Source "ChessBase"]
[SourceQuality "1"]
[TimeControl "5400+30"]

1. e4 {[%emt 0:00:01]} e6 {[%emt 0:00:04]} 2. d4 {[%emt 0:00:04]} d5 {[%emt 0:00:07]} 3. e5 {[%emt 0:00:03]} c5 {[%emt 1:31:49]} 4. c3 {[%emt 0:00:04]} Qb6 {[%emt 0:00:00]} 5. Nf3 {[%emt 0:00:06]} Nc6 {[%emt 0:00:00]} 6. Bd3 {[%emt 0:00:05]} cxd4 {[%emt 0:00:00]} 7. O-O {[%emt 0:00:11]} Bd7 {[%emt 0:00:00]} 8. Re1 {[%emt 0:00:07]} a5 {[%emt 0:00:00]} 9. Nbd2 {[%emt 0:00:09]} a4 {[%emt 0:00:00]} 10. Rb1 {[%emt 0:00:22]} Nge7 {[%emt 0:00:00]} 11. h4 {[%emt 0:06:11]} f6 {[%emt 0:00:00]} 12. exf6 {[%emt 0:08:30]} gxf6 {[%emt 0:00:00]} 13. cxd4 {[%emt 0:06:15]} Nxd4 {[%emt 0:00:00]} 14. Nxd4 {[%emt 0:03:41]} Qxd4 {[%emt 0:00:00]} 15. Nc4 {[%emt 0:03:18]} Qxh4 {[%emt 0:00:00]} 16. Nd6+ {[%emt 0:00:19]} Kd8 {[%emt 0:00:00]} 17. Nf7+ {[%emt 0:10:07]} Kc7 {[%emt 0:00:00]} 18. Nxh8 {[%emt 0:01:00]} Bg7 {[%emt 0:00:00]} 19. Nf7 {[%emt 0:02:13]} Rf8 {[%emt 0:00:00]} 20. g3 {[%emt 0:04:39]} Qh3 {[%emt 0:00:00]} 21. Bf4+ {[%emt 0:01:54]} e5 {[%emt 0:00:00]} 22. Nxe5 {[%emt 0:00:43]} fxe5 {[%emt 0:00:00]} 23. Qc2+ {[%emt 0:04:06]} Nc6 {[%emt 0:00:00]} 24. Bxe5+ {[%emt 0:02:28]} Bxe5 {[%emt 0:00:00]} 25. Rxe5 {[%emt 0:00:11]} Kd6 {[%emt 0:00:00]} 26. Bf1 {[%emt 0:06:21]} Qg4 {[%emt 0:00:00]} 27. Re3 {[%emt 0:05:46]} Bf5 {[%emt 0:00:00]} 28. Qd1 {[%emt 0:02:31]} Qb4 {[%emt 0:00:00]} 29. Bd3 {[%emt 0:01:36]} Bg4 {[%emt 0:00:00]} 30. Qe1 {[%emt 0:08:24]} Qb6 {[%emt 0:00:00]} 31. b3 {[%emt 0:03:20]} axb3 {[%emt 0:00:00]} 32. Rxb3 {[%emt 0:00:28]} Qc7 {[%emt 0:00:00]} 33. Qd2 {[%emt 0:04:17]} Qf7 {[%emt 0:00:00]} 34. Bc4 {[%emt 0:02:04]} Qh5 {[%emt 0:00:00]} 35. Bxd5 {[%emt 0:01:31]} Kc7 {[%emt 0:00:00]} 36. Bxc6 {[%emt 0:01:17]} bxc6 {[%emt 0:16:30]} 37. Re7+ {[%emt 0:00:19]} Kc8 {[%emt 0:00:00]} 38. Rb8+ {[%emt 0:00:30]} Kxb8 {[%emt 0:00:00]} 39. Qd6+ {[%emt 0:00:06]} Ka8 {[%emt 0:00:00]} 40. Qxc6+ {[%emt 0:00:08]} Kb8 {[%emt 0:00:00]} 41. Qb7# {[%emt 0:00:05]} 1-0

[Event "FIDE WCCC Open-08 2024"]
[Site "Montesilvano"]
[Date "2024.11.26"]
[Round "11.16"]
[White "Sahin, Bora"]
[Black "Bausys, Benas"]
[Result "0-1"]
[ECO "B23"]
[WhiteElo "1703"]
[BlackElo "1564"]
[Annotator "NA RC"]
[PlyCount "120"]
[EventDate "2024.11.18"]
[EventType "swiss"]
[EventCountry "ITA"]
[SourceTitle "playchess.com"]
[Source "ChessBase"]
[SourceQuality "1"]
[TimeControl "5400+30"]

1. e4 {[%emt 0:00:03]} c5 {[%emt 0:00:17]} 2. Nc3 {[%emt 0:00:05]} a6 {[%emt 0:00:13]} 3. g3 {[%emt 0:00:04]} Nc6 {[%emt 0:00:17]} 4. Nge2 {[%emt 0:00:05]} e5 {[%emt 0:00:30]} 5. Nd5 {[%emt 0:02:08]} d6 {[%emt 0:01:21]} 6. Bg2 {[%emt 0:02:20]} g6 {[%emt 0:00:51]} 7. d3 {[%emt 0:02:38]} Bg7 {[%emt 0:00:35]} 8. O-O {[%emt 0:01:08]} Nge7 {[%emt 0:05:43]} 9. Bg5 {[%emt 0:00:34]} O-O {[%emt 0:03:14]} 10. Nf6+ {[%emt 0:02:10]} Kh8 {[%emt 0:00:51]} 11. Qd2 {[%emt 0:02:18]} h6 {[%emt 0:04:18]} 12. Bxh6 {[%emt 0:00:13]} Bxf6 {[%emt 0:00:11]} 13. Bxf8 {[%emt 0:00:03]} Qxf8 {[%emt 0:00:26]} 14. c3 {[%emt 0:01:13]} b5 {[%emt 0:02:47]} 15. Kh1 {[%emt 0:05:45]} Bb7 {[%emt 0:01:30]} 16. g4 {[%emt 0:04:59]} g5 {[%emt 0:19:21]} 17. Qe3 {[%emt 0:01:31]} Ng6 {[%emt 0:00:43]} 18. Ng3 {[%emt 0:03:19]} Rd8 {[%emt 0:01:17]} 19. Nf5 {[%emt 0:01:37]} Qg8 {[%emt 0:01:20]} 20. Qh3+ {[%emt 0:03:34]} Qh7 {[%emt 0:00:23]} 21. Qxh7+ {[%emt 0:01:54]} Kxh7 {[%emt 0:00:23]} 22. Rfc1 {[%emt 0:01:15]} Nf4 {[%emt 0:00:39]} 23. Bf1 {[%emt 0:00:20]} d5 {[%emt 0:00:42]} 24. Rd1 {[%emt 0:01:22]} Ba8 {[%emt 0:05:29]} 25. f3 {[%emt 0:00:44]} b4 {[%emt 0:05:49]} 26. Rab1 {[%emt 0:01:53]} Kg6 {[%emt 0:01:08]} 27. a3 {[%emt 0:04:00]} b3 {[%emt 0:01:17]} 28. Rbc1 {[%emt 0:04:57]} a5 {[%emt 0:04:24]} 29. Ne3 {[%emt 0:03:04]} a4 {[%emt 0:00:43]} 30. c4 {[%emt 0:04:44]} dxe4 {[%emt 0:04:41]} 31. dxe4 {[%emt 0:03:53]} Nd4 {[%emt 0:00:46]} 32. Bg2 {[%emt 0:05:59]} Rh8 {[%emt 0:02:21]} 33. Nd5 {[%emt 0:02:24]} Bc6 {[%emt 0:00:30]} 34. Nxf4+ {[%emt 0:00:30]} exf4 {[%emt 0:00:30]} 35. Rd2 {[%emt 0:00:30]} Be5 {[%emt 0:00:30]} 36. Rcd1 {[%emt 0:00:30]} Bb7 {[%emt 0:00:30]} 37. Kg1 {[%emt 0:00:30]} Ba6 {[%emt 0:00:30]} 38. Rc1 {[%emt 0:00:30]} Rd8 {[%emt 0:00:30]} 39. Kf2 {[%emt 0:00:30]} Rh8 {[%emt 0:00:30]} 40. h3 {[%emt 0:15:53]} f6 {[%emt 0:02:14]} 41. Bf1 {[%emt 0:19:51]} Nc2 {[%emt 0:30:46]} 42. Rd7 {[%emt 0:00:30]} Bxb2 {[%emt 0:00:30]} 43. Rcd1 {[%emt 0:00:00]} Bd4+ {[%emt 0:00:00]} 44. Ke2 {[%emt 0:00:00]} Bxc4+ {[%emt 0:00:00]} 45. Kd2 {[%emt 0:01:30]} Bxf1 {[%emt 0:00:00]} 46. Rxf1 {[%emt 0:00:00]} Nxa3 {[%emt 0:00:00]} 47. Ra7 {[%emt 0:00:00]} b2 {[%emt 0:00:00]} 48. Rb7 {[%emt 0:00:00]} c4 {[%emt 0:00:00]} 49. Rc7 {[%emt 0:00:00]} c3+ {[%emt 0:00:00]} 50. Rxc3 {[%emt 0:00:00]} Bxc3+ {[%emt 0:00:00]} 51. Kxc3 {[%emt 0:00:00]} b1=Q {[%emt 0:00:00]} 52. Rxb1 {[%emt 0:00:00]} Nxb1+ {[%emt 0:00:00]} 53. Kd4 {[%emt 0:00:00]} a3 {[%emt 0:00:00]} 54. h4 {[%emt 0:00:00]} a2 {[%emt 0:00:00]} 55. h5+ {[%emt 0:00:00]} Kf7 {[%emt 0:00:00]} 56. Kd5 {[%emt 0:00:00]} a1=Q {[%emt 0:00:00]} 57. e5 {[%emt 0:00:00]} Rd8+ {[%emt 0:00:00]} 58. Kc4 {[%emt 0:00:00]} Qc3+ {[%emt 0:00:00]} 59. Kb5 {[%emt 0:00:00]} Rb8+ {[%emt 0:00:00]} 60. Ka4 {[%emt 0:00:00]} Qa3# {[%emt 0:00:00]} 0-1

[Event "FIDE WCCC Open-08 2024"]
[Site "Montesilvano"]
[Date "2024.11.26"]
[Round "11.17"]
[White "Sivan, Leeor"]
[Black "Huzela, Lukyan"]
[Result "0-1"]
[ECO "A28"]
[WhiteElo "1464"]
[BlackElo "1651"]
[Annotator "NA RC"]
[PlyCount "46"]
[EventDate "2024.11.18"]
[EventType "swiss"]
[EventCountry "ITA"]
[SourceTitle "playchess.com"]
[Source "ChessBase"]
[SourceQuality "1"]
[TimeControl "5400+30"]

1. c4 {[%emt 0:00:30]} e5 {[%emt 0:00:04]} 2. Nc3 {[%emt 0:00:07]} Bb4 {[%emt 0:00:04]} 3. d3 {[%emt 0:21:49]} Nf6 {[%emt 0:04:08]} 4. Nf3 {[%emt 0:00:10]} Nc6 {[%emt 0:01:51]} 5. a3 {[%emt 0:01:07]} Bxc3+ {[%emt 0:01:57]} 6. bxc3 {[%emt 0:00:06]} e4 {[%emt 0:00:41]} 7. dxe4 {[%emt 0:01:20]} Nxe4 {[%emt 0:00:18]} 8. Qd3 {[%emt 0:01:31]} Qe7 {[%emt 0:01:26]} 9. g3 {[%emt 0:01:52]} O-O {[%emt 0:05:24]} 10. Bg2 {[%emt 0:06:54]} Re8 {[%emt 0:03:35]} 11. Be3 {[%emt 0:05:27]} b6 {[%emt 0:07:07]} 12. O-O {[%emt 0:03:39]} Ba6 {[%emt 0:01:11]} 13. Nd4 {[%emt 0:02:37]} Nxd4 {[%emt 0:02:38]} 14. Qxd4 {[%emt 0:04:15]} c5 {[%emt 0:03:34]} 15. Qd3 {[%emt 0:17:24]} Rad8 {[%emt 0:01:20]} 16. Qc2 {[%emt 0:00:40]} Bxc4 {[%emt 0:01:47]} 17. Qa4 {[%emt 0:01:51]} d5 {[%emt 0:00:11]} 18. Bxe4 {[%emt 0:02:22]} Qxe4 {[%emt 0:00:56]} 19. Qxa7 {[%emt 0:01:39]} d4 {[%emt 0:00:07]} 20. Bf4 {[%emt 0:01:51]} Bxe2 {[%emt 0:00:23]} 21. Rfe1 {[%emt 0:01:18]} d3 {[%emt 0:00:19]} 22. Ra2 {[%emt 0:00:22]} Qc6 {[%emt 0:00:35]} 23. Bd2 {[%emt 0:05:12]} Ra8 {[%emt 0:01:18]} 0-1

[Event "FIDE WCCC Open-08 2024"]
[Site "Montesilvano"]
[Date "2024.11.26"]
[Round "11.18"]
[White "Ranganathan, Aadith"]
[Black "Zhanabayev, Arystan"]
[Result "0-1"]
[ECO "B24"]
[WhiteElo "1645"]
[BlackElo "1524"]
[Annotator "NA RC"]
[PlyCount "134"]
[EventDate "2024.11.18"]
[EventType "swiss"]
[EventCountry "ITA"]
[SourceTitle "playchess.com"]
[Source "ChessBase"]
[SourceQuality "1"]
[TimeControl "5400+30"]

1. e4 {[%emt 0:00:33]} c5 {[%emt 0:00:13]} 2. Nc3 {[%emt 0:00:22]} Nc6 {[%emt 0:00:09]} 3. Nge2 {[%emt 0:00:10]} g6 {[%emt 0:00:40]} 4. g3 {[%emt 0:00:07]} Bg7 {[%emt 0:00:12]} 5. Bg2 {[%emt 0:00:07]} e6 {[%emt 0:00:23]} 6. O-O {[%emt 0:00:10]} Nge7 {[%emt 0:00:06]} 7. d3 {[%emt 0:00:25]} O-O {[%emt 0:00:44]} 8. Be3 {[%emt 0:01:34]} Nd4 {[%emt 0:00:30]} 9. Nf4 {[%emt 0:03:16]} d6 {[%emt 0:03:15]} 10. h4 {[%emt 0:02:23]} e5 {[%emt 0:02:01]} 11. Nfd5 {[%emt 0:00:28]} h5 {[%emt 0:03:14]} 12. Nxe7+ {[%emt 0:03:36]} Qxe7 {[%emt 0:00:26]} 13. Nd5 {[%emt 0:00:07]} Qd8 {[%emt 0:01:34]} 14. c3 {[%emt 0:00:26]} Nc6 {[%emt 0:02:09]} 15. Bg5 {[%emt 0:00:57]} f6 {[%emt 0:01:48]} 16. Be3 {[%emt 0:00:54]} Be6 {[%emt 0:01:25]} 17. Qd2 {[%emt 0:00:48]} Kh7 {[%emt 0:00:23]} 18. f4 {[%emt 0:01:26]} f5 {[%emt 0:05:41]} 19. Rf2 {[%emt 0:02:04]} Bxd5 {[%emt 0:01:18]} 20. exd5 {[%emt 0:01:16]} Ne7 {[%emt 0:02:33]} 21. d4 {[%emt 0:00:40]} cxd4 {[%emt 0:01:52]} 22. cxd4 {[%emt 0:01:26]} e4 {[%emt 0:00:39]} 23. Bf1 {[%emt 0:02:37]} Nxd5 {[%emt 0:03:46]} 24. Bc4 {[%emt 0:00:37]} Nxe3 {[%emt 0:01:04]} 25. Qxe3 {[%emt 0:00:15]} Qb6 {[%emt 0:01:19]} 26. Rd1 {[%emt 0:01:30]} Rac8 {[%emt 0:01:55]} 27. Bb3 {[%emt 0:01:03]} Rfd8 {[%emt 0:00:55]} 28. Qd2 {[%emt 0:02:35]} d5 {[%emt 0:00:47]} 29. Qe3 {[%emt 0:01:47]} a5 {[%emt 0:00:59]} 30. Rfd2 {[%emt 0:01:49]} Qa6 {[%emt 0:02:42]} 31. a3 {[%emt 0:00:43]} b5 {[%emt 0:03:01]} 32. Kg2 {[%emt 0:00:46]} a4 {[%emt 0:00:52]} 33. Ba2 {[%emt 0:01:15]} Rd6 {[%emt 0:01:40]} 34. Re2 {[%emt 0:00:31]} Qb6 {[%emt 0:04:23]} 35. Red2 {[%emt 0:01:49]} b4 {[%emt 0:00:53]} 36. axb4 {[%emt 0:01:28]} Qxb4 {[%emt 0:00:30]} 37. Kh2 {[%emt 0:02:29]} Qb5 {[%emt 0:00:48]} 38. Qa3 {[%emt 0:01:03]} Bf8 {[%emt 0:01:15]} 39. b3 {[%emt 0:01:04]} Ra6 {[%emt 0:03:34]} 40. bxa4 {[%emt 0:01:09]} Rxa4 {[%emt 0:00:56]} 41. Qb3 {[%emt 0:00:53]} Qxb3 {[%emt 0:07:12]} 42. Bxb3 {[%emt 0:00:34]} Ra3 {[%emt 0:01:07]} 43. Bxd5 {[%emt 0:00:54]} Rcc3 {[%emt 0:01:42]} 44. Rg2 {[%emt 0:06:21]} Rd3 {[%emt 0:00:38]} 45. Rb1 {[%emt 0:01:57]} Rxd4 {[%emt 0:02:26]} 46. Rb7+ {[%emt 0:00:10]} Bg7 {[%emt 0:00:33]} 47. Rc2 {[%emt 0:00:42]} Rxd5 {[%emt 0:01:25]} 48. Rcc7 {[%emt 0:00:13]} Ra2+ {[%emt 0:00:13]} 49. Kh3 {[%emt 0:00:09]} Rdd2 {[%emt 0:01:25]} 50. Rxg7+ {[%emt 0:00:22]} Kh8 {[%emt 0:00:08]} 51. Rh7+ {[%emt 0:00:40]} Kg8 {[%emt 0:00:08]} 52. Rhg7+ {[%emt 0:00:52]} Kf8 {[%emt 0:00:44]} 53. Rgf7+ {[%emt 0:00:13]} Ke8 {[%emt 0:00:13]} 54. Rfe7+ {[%emt 0:00:10]} Kd8 {[%emt 0:00:13]} 55. Red7+ {[%emt 0:00:08]} Rxd7 {[%emt 0:00:15]} 56. Rxd7+ {[%emt 0:00:04]} Kxd7 {[%emt 0:00:11]} 57. g4 {[%emt 0:00:06]} hxg4+ {[%emt 0:00:14]} 58. Kg3 {[%emt 0:00:08]} Ra3+ {[%emt 0:00:14]} 59. Kg2 {[%emt 0:00:06]} Rf3 {[%emt 0:00:21]} 60. h5 {[%emt 0:00:10]} gxh5 {[%emt 0:00:29]} 61. Kg1 {[%emt 0:00:12]} h4 {[%emt 0:00:38]} 62. Kg2 {[%emt 0:00:06]} h3+ {[%emt 0:00:12]} 63. Kh2 {[%emt 0:00:04]} e3 {[%emt 0:00:50]} 64. Kg1 {[%emt 0:00:06]} Rf2 {[%emt 0:00:31]} 65. Kh1 {[%emt 0:00:06]} g3 {[%emt 0:00:18]} 66. Kg1 {[%emt 0:00:07]} Rf3 {[%emt 0:00:09]} 67. Kh1 {[%emt 0:00:03]} Rf1# {[%emt 0:00:56]} 0-1

[Event "FIDE WCCC Open-08 2024"]
[Site "Montesilvano"]
[Date "2024.11.26"]
[Round "11.20"]
[White "Charyyev Charyhekim"]
[Black "Batbileg, Boldbaatar"]
[Result "0-1"]
[ECO "D00"]
[WhiteElo "1589"]
[BlackElo "1623"]
[Annotator "NA RC"]
[PlyCount "70"]
[EventDate "2024.11.18"]
[EventType "swiss"]
[EventCountry "ITA"]
[SourceTitle "playchess.com"]
[Source "ChessBase"]
[SourceQuality "1"]
[TimeControl "5400+30"]

1. d4 {[%emt 1:31:00]} d5 2. Bf4 {[%emt 0:00:00]} Nf6 {[%emt 0:00:25]} 3. e3 {[%emt 0:00:00]} e6 {[%emt 0:00:23]} 4. c3 {[%emt 0:00:00]} Bd6 {[%emt 0:00:09]} 5. Bg3 {[%emt 0:00:00]} c5 {[%emt 0:03:09]} 6. Nf3 {[%emt 0:00:00]} Qc7 {[%emt 0:00:15]} 7. Ne5 {[%emt 0:00:00]} Nbd7 {[%emt 0:00:24]} 8. Bb5 {[%emt 0:00:00]} O-O {[%emt 0:05:47]} 9. Bxd7 {[%emt 0:00:00]} Nxd7 {[%emt 0:01:48]} 10. Nxd7 {[%emt 0:04:30]} Bxd7 {[%emt 0:00:56]} 11. f4 {[%emt 0:00:00]} Bb5 {[%emt 0:08:55]} 12. a4 {[%emt 0:00:00]} Ba6 {[%emt 0:01:58]} 13. Na3 {[%emt 0:00:00]} cxd4 {[%emt 0:02:51]} 14. Qxd4 {[%emt 0:00:00]} Bc5 {[%emt 0:01:17]} 15. Qd2 {[%emt 0:00:00]} Qb6 {[%emt 0:03:05]} 16. Bf2 {[%emt 0:00:00]} Qb3 {[%emt 0:03:48]} 17. Qc2 {[%emt 0:00:00]} Qxc2 {[%emt 0:01:27]} 18. Nxc2 {[%emt 0:00:00]} Bd3 {[%emt 0:01:01]} 19. O-O-O {[%emt 0:00:00]} Be4 {[%emt 0:01:13]} 20. Rhg1 {[%emt 0:00:00]} a6 {[%emt 0:01:38]} 21. Nd4 {[%emt 0:00:00]} b5 {[%emt 0:01:50]} 22. Nb3 {[%emt 0:00:00]} Be7 {[%emt 0:01:27]} 23. Nd2 {[%emt 0:00:00]} Bg6 {[%emt 0:01:44]} 24. axb5 {[%emt 0:00:00]} axb5 {[%emt 0:00:17]} 25. e4 {[%emt 0:00:00]} dxe4 {[%emt 0:01:04]} 26. Be3 {[%emt 0:00:00]} b4 {[%emt 0:03:59]} 27. c4 {[%emt 0:00:00]} Bf6 {[%emt 0:01:19]} 28. Nb3 {[%emt 0:02:05]} Rfc8 {[%emt 0:00:33]} 29. c5 {[%emt 0:00:25]} e5 {[%emt 0:00:48]} 30. fxe5 {[%emt 0:01:31]} Bxe5 {[%emt 0:00:28]} 31. h3 {[%emt 0:01:21]} Ra2 {[%emt 0:00:47]} 32. Rd2 {[%emt 0:01:28]} f5 {[%emt 0:00:14]} 33. g3 {[%emt 0:02:16]} Bf7 {[%emt 0:00:20]} 34. Nd4 {[%emt 0:01:08]} Ra1+ {[%emt 0:00:12]} 35. Kc2 {[%emt 0:00:22]} Rxc5# {[%emt 0:00:05]} 0-1

[Event "FIDE WCCC Open-08 2024"]
[Site "Montesilvano"]
[Date "2024.11.26"]
[Round "11.21"]
[White "Kuncoro, Leo"]
[Black "Mankovich, Yoav"]
[Result "1-0"]
[ECO "C58"]
[WhiteElo "1726"]
[BlackElo "1490"]
[Annotator "NA RC"]
[PlyCount "83"]
[EventDate "2024.11.18"]
[EventType "swiss"]
[EventCountry "ITA"]
[SourceTitle "playchess.com"]
[Source "ChessBase"]
[SourceQuality "1"]
[TimeControl "5400+30"]

1. e4 {[%emt 0:00:04]} e5 {[%emt 0:00:16]} 2. Nf3 {[%emt 0:00:06]} Nc6 {[%emt 0:00:15]} 3. Bc4 {[%emt 0:00:06]} Nf6 {[%emt 0:00:06]} 4. Ng5 {[%emt 0:00:05]} d5 {[%emt 0:00:52]} 5. exd5 {[%emt 0:00:06]} Na5 {[%emt 0:00:10]} 6. Bb5+ {[%emt 0:00:07]} c6 {[%emt 0:00:26]} 7. dxc6 {[%emt 0:00:07]} bxc6 {[%emt 0:00:18]} 8. Qf3 {[%emt 0:00:05]} cxb5 {[%emt 0:00:27]} 9. Qxa8 {[%emt 0:00:08]} Qc7 {[%emt 0:00:27]} 10. Qf3 {[%emt 0:00:06]} Nc6 {[%emt 0:01:36]} 11. c3 {[%emt 0:00:08]} Bg4 {[%emt 0:00:26]} 12. Qe3 {[%emt 0:08:16]} Nd4 {[%emt 0:02:49]} 13. Na3 {[%emt 0:02:31]} Ne2 {[%emt 0:21:13]} 14. Nxb5 {[%emt 0:22:44]} Qb8 {[%emt 0:06:35]} 15. a4 {[%emt 0:03:58]} Be7 {[%emt 0:16:57]} 16. Qxa7 {[%emt 0:07:38]} Qc8 {[%emt 0:04:34]} 17. Nxf7 {[%emt 0:02:19]} O-O {[%emt 0:02:35]} 18. Qxe7 {[%emt 0:01:01]} Qc4 {[%emt 0:26:26]} 19. Nxe5 {[%emt 0:14:49]} Qd5 {[%emt 0:10:01]} 20. f3 {[%emt 0:05:17]} Bh5 {[%emt 0:00:29]} 21. Qd6 {[%emt 0:01:19]} Nf4 {[%emt 0:03:28]} 22. Qxd5+ {[%emt 0:00:43]} N6xd5 {[%emt 0:00:15]} 23. Kf2 {[%emt 0:00:40]} Ra8 {[%emt 0:00:23]} 24. d4 {[%emt 0:00:34]} Ne6 {[%emt 0:00:47]} 25. Bd2 {[%emt 0:02:29]} Be8 {[%emt 0:00:13]} 26. c4 {[%emt 0:00:43]} Nb6 {[%emt 0:00:06]} 27. Be3 {[%emt 0:01:55]} Rxa4 {[%emt 0:00:52]} 28. Rxa4 {[%emt 0:00:25]} Nxa4 {[%emt 0:00:06]} 29. Nd6 {[%emt 0:00:46]} Kf8 {[%emt 0:00:32]} 30. b3 {[%emt 0:01:07]} Nb6 {[%emt 0:00:29]} 31. Nxe8 {[%emt 0:00:15]} Kxe8 {[%emt 0:00:08]} 32. d5 {[%emt 0:00:08]} Nxd5 {[%emt 0:00:38]} 33. cxd5 {[%emt 0:00:10]} Nc7 {[%emt 0:00:13]} 34. d6 {[%emt 0:00:19]} Nb5 {[%emt 0:00:08]} 35. Bc5 {[%emt 0:00:17]} g5 {[%emt 0:00:13]} 36. d7+ {[%emt 0:00:13]} Kd8 {[%emt 0:00:16]} 37. Bb6+ {[%emt 0:00:08]} Nc7 {[%emt 0:00:10]} 38. Rc1 {[%emt 0:00:07]} g4 {[%emt 0:00:22]} 39. Bxc7+ {[%emt 0:00:09]} Ke7 {[%emt 0:00:06]} 40. d8=Q+ {[%emt 0:00:10]} Ke6 {[%emt 0:00:05]} 41. Rc6+ {[%emt 0:00:09]} Kf5 {[%emt 0:00:31]} 42. Qf6# {[%emt 0:00:53]} 1-0